[Event "2021 m. Jauniu lyga. III etapas. A"]
[Site "Siauliai"]
[Date "2021.07.04"]
[Round "6.3"]
[White "Bagvilas, Lukas"]
[Black "Salna, Aleksandras"]
[Result "1-0"]
[WhiteElo "1973"]
[BlackElo "2134"]
[PlyCount "59"]
[EventDate "2021.??.??"]
[TimeControl "8+4"]
[WhiteClock "0:04:56"]
[BlackClock "0:02:54"]

1. e4 {[%emt 0:00:00]} c5 {[%emt 0:00:02]} 2. Nc3 {[%emt 0:00:01]} Nc6 {[%emt
0:00:01]} 3. Bb5 {[%emt 0:00:00]} Nd4 {[%emt 0:00:01]} 4. Nf3 {[%emt 0:00:00]}
a6 {[%emt 0:00:07]} 5. Bc4 {[%emt 0:00:06]} e6 {[%emt 0:00:13]} 6. d3 {[%emt 0:
00:30]} b5 {[%emt 0:00:18]} 7. Bb3 {[%emt 0:00:01]} Nc6 {[%emt 0:00:01]} 8. O-O
{[%emt 0:00:05]} d6 {[%emt 0:00:13]} 9. a4 {[%emt 0:00:05]} b4 {[%emt 0:00:33]}
10. Ne2 {[%emt 0:00:02]} Nf6 {[%emt 0:00:04]} 11. h3 {[%emt 0:00:15]} Be7 {
[%emt 0:00:04]} 12. Nh2 {[%emt 0:00:00]} d5 {[%emt 0:00:27]} 13. e5 {[%emt 0:
00:02]} Nxe5 {[%emt 0:00:14]} 14. d4 {[%emt 0:00:15]} Nc6 {[%emt 0:00:10]} 15.
dxc5 {[%emt 0:00:05]} Bxc5 {[%emt 0:00:03]} 16. Bg5 {[%emt 0:00:02]} O-O {
[%emt 0:00:26]} 17. Nf4 {[%emt 0:00:41]} h6 {[%emt 0:00:14]} 18. Nd3 {[%emt 0:
00:16]} Bd4 {[%emt 0:00:13]} 19. Bh4 {[%emt 0:00:03]} a5 {[%emt 0:00:09]} 20.
Ng4 {[%emt 0:00:13]} Ba6 {[%emt 0:00:10]} 21. c3 {[%emt 0:00:23]} bxc3 {[%emt
0:00:18]} 22. bxc3 {[%emt 0:00:00]} Bxd3 {[%emt 0:01:22]} 23. Qxd3 {[%emt 0:00:
17]} Bc5 {[%emt 0:00:22]} 24. Bxf6 {[%emt 0:00:36]} gxf6 {[%emt 0:00:04]} 25.
Nxh6+ {[%emt 0:00:22]} Kh8 {[%emt 0:00:24]} 26. Bc2 {[%emt 0:00:07]} f5 {[%emt
0:00:09]} 27. Nxf5 {[%emt 0:00:11]} Ne5 {[%emt 0:00:28]} 28. Qe2 {[%emt 0:00:
17]} Qf6 {[%emt 0:00:22]} 29. Qh5+ {[%emt 0:00:01]} Kg8 {[%emt 0:00:01]} 30.
Ne7+ {[%emt 0:00:01]} 1-0

[Event "2021 m. Jauniu lyga. III etapas. A"]
[Site "Siauliai"]
[Date "2021.07.04"]
[Round "7.1"]
[White "Bagdanskis, Dangis"]
[Black "Bagvilas, Lukas"]
[Result "0-1"]
[WhiteElo "1897"]
[BlackElo "1973"]
[PlyCount "48"]
[EventDate "2021.??.??"]
[TimeControl "8+4"]
[WhiteClock "0:00:06"]
[BlackClock "0:02:54"]

1. d4 {[%emt 0:00:00]} d5 {[%emt 0:00:05]} 2. Bf4 {[%emt 0:00:12]} e6 {[%emt 0:
00:02]} 3. Nf3 {[%emt 0:00:02]} Nf6 {[%emt 0:00:00]} 4. e3 {[%emt 0:00:03]} c5
{[%emt 0:00:06]} 5. c4 {[%emt 0:00:02]} Nc6 {[%emt 0:00:36]} 6. cxd5 {[%emt 0:
00:28]} Nxd5 {[%emt 0:00:01]} 7. Bg5 {[%emt 0:00:01]} Qb6 {[%emt 0:00:10]} 8.
b3 {[%emt 0:00:09]} cxd4 {[%emt 0:00:06]} 9. exd4 {[%emt 0:00:41]} Bb4+ {[%emt
0:00:02]} 10. Nbd2 {[%emt 0:00:23]} Nc3 {[%emt 0:00:15]} 11. Qc1 {[%emt 0:00:
46]} Nxd4 {[%emt 0:00:19]} 12. a3 {[%emt 0:00:48]} Nxb3 {[%emt 0:00:56]} 13.
Nxb3 {[%emt 0:00:06]} Na2+ {[%emt 0:00:02]} 14. axb4 {[%emt 0:00:12]} Nxc1 {
[%emt 0:00:02]} 15. Nxc1 {[%emt 0:00:06]} Qxb4+ {[%emt 0:00:02]} 16. Bd2 {
[%emt 0:00:07]} Qb2 {[%emt 0:01:28]} 17. Ra2 {[%emt 0:00:25]} Qb6 {[%emt 0:00:
31]} 18. Ba5 {[%emt 0:01:22]} Qc6 {[%emt 0:00:20]} 19. Nd3 {[%emt 0:00:49]} Bd7
{[%emt 0:01:11]} 20. Be2 {[%emt 0:00:06]} Qd5 {[%emt 0:00:07]} 21. Nc1 {[%emt
0:00:44]} Rc8 {[%emt 0:00:17]} 22. O-O {[%emt 0:01:19]} Rxc1 {[%emt 0:00:05]}
23. Rxc1 {[%emt 0:00:13]} Qxa2 {[%emt 0:00:02]} 24. Bb5 {[%emt 0:00:25]} Qxa5 {
[%emt 0:00:29]} 0-1

[Event "2021 m. Jauniu lyga. III etapas. A"]
[Site "Siauliai"]
[Date "2021.07.04"]
[Round "7.2"]
[White "Posaskov, Nikita"]
[Black "Morkunas, Gustas"]
[Result "1-0"]
[WhiteElo "1862"]
[BlackElo "1940"]
[PlyCount "61"]
[EventDate "2021.??.??"]
[TimeControl "8+4"]
[WhiteClock "0:02:39"]
[BlackClock "0:00:10"]

1. Nc3 {[%emt 0:00:00]} Nf6 {[%emt 0:00:11]} 2. e4 {[%emt 0:00:02]} e5 {[%emt
0:00:19]} 3. Nf3 {[%emt 0:00:04]} Nc6 {[%emt 0:00:26]} 4. d4 {[%emt 0:00:02]}
exd4 {[%emt 0:00:25]} 5. Nxd4 {[%emt 0:00:02]} Bb4 {[%emt 0:01:04]} 6. Nxc6 {
[%emt 0:00:02]} bxc6 {[%emt 0:00:03]} 7. Bd3 {[%emt 0:00:01]} O-O {[%emt 0:01:
11]} 8. O-O {[%emt 0:00:15]} d6 {[%emt 0:00:16]} 9. Bg5 {[%emt 0:00:09]} h6 {
[%emt 0:00:06]} 10. Bh4 {[%emt 0:00:02]} Qe7 {[%emt 0:00:27]} 11. Qf3 {[%emt 0:
00:19]} g5 {[%emt 0:00:17]} 12. Bg3 {[%emt 0:00:12]} Bg4 {[%emt 0:00:04]} 13.
Qe3 {[%emt 0:00:01]} Bc5 {[%emt 0:00:32]} 14. Qe1 {[%emt 0:00:02]} Rae8 {[%emt
0:00:18]} 15. Na4 {[%emt 0:00:07]} Bb6 {[%emt 0:00:08]} 16. Nxb6 {[%emt 0:00:
02]} cxb6 {[%emt 0:00:07]} 17. f3 {[%emt 0:00:02]} Bh5 {[%emt 0:00:28]} 18. Qc3
{[%emt 0:00:06]} Rc8 {[%emt 0:00:49]} 19. Rae1 {[%emt 0:00:13]} Nd7 {[%emt 0:
00:19]} 20. e5 {[%emt 0:01:25]} dxe5 {[%emt 0:00:34]} 21. Bxe5 {[%emt 0:00:01]}
Nxe5 {[%emt 0:00:03]} 22. Rxe5 {[%emt 0:00:15]} Qd6 {[%emt 0:00:03]} 23. Rfe1 {
[%emt 0:00:10]} Bg6 {[%emt 0:00:20]} 24. Bc4 {[%emt 0:02:21]} b5 {[%emt 0:00:
17]} 25. Bb3 {[%emt 0:00:05]} c5 {[%emt 0:00:02]} 26. Bd5 {[%emt 0:00:03]} Qb6
{[%emt 0:00:47]} 27. h4 {[%emt 0:00:35]} c4+ {[%emt 0:00:08]} 28. Kh1 {[%emt 0:
00:07]} Qf2 {[%emt 0:00:12]} 29. hxg5 {[%emt 0:00:20]} hxg5 {[%emt 0:00:02]}
30. Qe3 {[%emt 0:00:12]} Qxe3 {[%emt 0:00:08]} 31. R1xe3 {[%emt 0:00:01]} 1-0

[Event "2021 m. Jauniu lyga. III etapas. A"]
[Site "Siauliai"]
[Date "2021.07.04"]
[Round "7.3"]
[White "Vardanyan, Aras"]
[Black "Povilaitis, Tomas"]
[Result "1-0"]
[WhiteElo "2216"]
[BlackElo "2024"]
[PlyCount "77"]
[EventDate "2021.??.??"]
[TimeControl "8+4"]
[WhiteClock "0:04:24"]
[BlackClock "0:00:05"]

1. Nc3 {[%emt 0:00:02]} Nf6 {[%emt 0:00:08]} 2. e4 {[%emt 0:00:01]} d5 {[%emt
0:00:41]} 3. e5 {[%emt 0:00:08]} d4 {[%emt 0:00:01]} 4. exf6 {[%emt 0:00:06]}
dxc3 {[%emt 0:00:01]} 5. fxg7 {[%emt 0:00:09]} cxd2+ {[%emt 0:00:03]} 6. Bxd2 {
[%emt 0:00:04]} Bxg7 {[%emt 0:00:02]} 7. Bd3 {[%emt 0:00:19]} Nc6 {[%emt 0:00:
14]} 8. Nf3 {[%emt 0:00:09]} Bg4 {[%emt 0:00:07]} 9. h3 {[%emt 0:00:02]} Bh5 {
[%emt 0:00:00]} 10. Bc3 {[%emt 0:00:24]} Bxc3+ {[%emt 0:00:15]} 11. bxc3 {
[%emt 0:00:01]} e6 {[%emt 0:01:36]} 12. Rb1 {[%emt 0:00:32]} Rb8 {[%emt 0:00:
58]} 13. Be4 {[%emt 0:00:15]} Qxd1+ {[%emt 0:00:12]} 14. Kxd1 {[%emt 0:00:02]}
Bxf3+ {[%emt 0:00:56]} 15. Bxf3 {[%emt 0:00:05]} Ke7 {[%emt 0:00:00]} 16. Rb5 {
[%emt 0:00:10]} f6 {[%emt 0:00:18]} 17. Ke2 {[%emt 0:00:30]} Nd8 {[%emt 0:00:
31]} 18. Rd1 {[%emt 0:00:29]} b6 {[%emt 0:00:25]} 19. a4 {[%emt 0:00:02]} a6 {
[%emt 0:00:04]} 20. Rh5 {[%emt 0:00:02]} Nf7 {[%emt 0:00:09]} 21. a5 {[%emt 0:
00:10]} Ne5 {[%emt 0:00:27]} 22. Be4 {[%emt 0:00:11]} f5 {[%emt 0:00:16]} 23.
Bd3 {[%emt 0:00:31]} bxa5 {[%emt 0:00:02]} 24. Ra1 {[%emt 0:00:10]} Nc6 {[%emt
0:00:30]} 25. g4 {[%emt 0:00:13]} f4 {[%emt 0:00:57]} 26. g5 {[%emt 0:00:23]}
e5 {[%emt 0:00:30]} 27. Be4 {[%emt 0:00:02]} Rb6 {[%emt 0:00:13]} 28. Rxh7+ {
[%emt 0:00:02]} Rxh7 {[%emt 0:00:02]} 29. Bxh7 {[%emt 0:00:00]} Rb8 {[%emt 0:
00:08]} 30. Be4 {[%emt 0:00:06]} Kd6 {[%emt 0:00:13]} 31. Rd1+ {[%emt 0:00:13]}
Kc5 {[%emt 0:00:04]} 32. Rd5+ {[%emt 0:00:15]} Kb6 33. g6 {[%emt 0:00:06]} Rh8
{[%emt 0:00:08]} 34. g7 {[%emt 0:00:04]} Rg8 35. Rd7 {[%emt 0:00:02]} Nb8 {
[%emt 0:00:04]} 36. Rf7 {[%emt 0:00:04]} Nc6 {[%emt 0:00:10]} 37. Bh7 {[%emt 0:
00:05]} Rd8 {[%emt 0:00:03]} 38. Rf8 {[%emt 0:00:02]} a4 {[%emt 0:00:06]} 39.
Rxd8 {[%emt 0:00:02]} 1-0